Cogmind - Beta 15 @@@ ROGUE MODE // 2025.06.29 @ 05:38:20 Player: Ish Result: Destroyed by G-34 Mercenary with Small Laser Performance ------------- Evolutions (1) 500 Regions Visited (2) 400 Robots Destroyed (26) 130 Value Destroyed (491) 491 Prototype IDs (3) 60 Alien Tech Used (0) 0 Bonus (0) 0 TOTAL SCORE: 1581 Bonus ------- None Cogmind --------- Core Integrity 0/400 Matter 41/300 Energy 72/100 System Corruption 2% Temperature Cool (6) Movement Core (50) Location -9/Materials Parts ------- > --- POWER (1) -------- (None) > --- PROPULSION (3) --- (None) > --- UTILITY (3) ------ Visual Processing Unit > --- WEAPON (2) ------- (None) > --- INVENTORY (5) ---- Structural Scanner Datajack Peak State ------------ > --- POWER ------------ Heavy Ion Engine > --- PROPULSION ------- Flight Unit Flight Unit VTOL Module > --- UTILITY ---------- Visual Processing Unit Power Shielding Backup Plating I > --- WEAPON ----------- Light Cannon Rocket Launcher > --- INVENTORY -------- Structural Scanner Light Assault Rifle Light Assault Rifle Datajack [Rating: 14] Favorites ----------- Power Light Ion Engine Engine Light Ion Engine Propulsion Flight Unit Leg Aluminum Leg Flight Unit Flight Unit Utility Visual Processing Unit Device Seismic Detector Storage Large Storage Unit Processor Visual Processing Unit Protection Backup Plating I Weapon Light Assault Rifle Ballistic Gun Light Assault Rifle Ballistic Cannon Light Cannon Launcher Grenade Launcher Special Weapon Mining Laser Build | -11 -10 -9 ------- Run | Yrd Mat Mat Slots Evolved 2 | . . 2 Power . | . . . Propulsion 1 | . . 1 Utility 1 | . . 1 Weapon . | . . . Parts Attached 30 | 8 14 8 Power 3 | 1 1 1 Engine 3 | 1 1 1 Core . | . . . Reactor . | . . . Propulsion 8 | 2 3 3 Treads . | . . . Leg 2 | 2 . . Wheel . | . . . Hover . | . . . Flight 6 | . 3 3 Utility 9 | 3 4 2 Device 4 | 3 . 1 Storage 3 | . 3 . Processor 1 | . 1 . Hackware . | . . . Protection 1 | . . 1 Artifact . | . . . Weapon 10 | 2 6 2 Energy Gun . | . . . Energy Cannon . | . . . Ballistic Gun 6 | 2 3 1 Ballistic Cannon 1 | . 1 . Launcher 2 | . 1 1 Special Weapon 1 | . 1 . Impact Weapon . | . . . Slashing Weapon . | . . . Piercing Weapon . | . . . Special Melee Weapon . | . . . Unidentified Prototypes 1 | . . 1 Parts Lost 18 | . 4 14 Power 2 | . . 2 Propulsion 5 | . . 5 Utility 4 | . 2 2 Weapon 7 | . 2 5 Highest Loss Streak 10 | . 3 10 To Critical Strikes . | . . . Average Backups 3 | 3 2 4 Power . | . . . Propulsion . | 2 . . Utility . | . . 1 Weapon 1 | . . 2 Tool/Special . | . . . Unused Backups 10 | 3 3 4 Power . | . . . Propulsion 6 | 3 2 1 Utility 2 | . 1 1 Weapon 1 | . . 1 Tool/Special 1 | . . 1 Average Slot Usage (%) 87 | . 92 81 Engine 12 | . 14 10 Leg 9 | . 15 . Flight 17 | . 12 23 Device 5 | . 9 . Storage 2 | . 4 . Processor 6 | . 3 11 Protection 9 | . 3 17 Ballistic Gun 12 | . 15 7 Ballistic Cannon 5 | . 5 5 Launcher 5 | . 5 4 Peak Build Rating 14 | 11 9 14 Average Rating 7 | 4 7 10 On Entrance 5 | . 9 8 Naked Turns . | . . . Heaviest Build 29 | 7 29 12 Greatest Support 20 | 20 20 12 Greatest Overweight (x) 3 | . 3 3 Average Overweight (x) . | . . . Largest Inventory Capacity 15 | 5 15 5 Average Capacity 6 | 5 7 5 Most Carried 5 | 5 5 5 Average Carried 3 | 3 2 4 Final Capacity 5 | 5 5 5 Final Carried 5 | 5 4 2 Class Distribution -------------------- 63% | Mutant 17% | Scavenger-Mutant 13% | Scavenger-Sprinter 5% | Sprinter Dominant Class ---------------- Mutant | -10/Materials Scavenger-Sprinter | -9/Materials Resources | -11 -10 -9 ----------- Run | Yrd Mat Mat Matter Collected 641 | 308 217 116 Remotely . | . . . Salvage Created 445 | 119 149 177 Parts 38 | 10 15 13 Haulers Intercepted . | . . . Recyclers Shooed . | . . . Parts Field Recycled . | . . . Retrieved Matter . | . . . Parts Self-Destructed . | . . . Prevented . | . . . Kills | -11 -10 -9 ------- Run | Yrd Mat Mat Combat Hostiles Destroyed 17 | 1 9 7 Guns 9 | 1 5 3 Cannons 2 | . 2 . AOE 6 | . 2 4 Classes Destroyed 8 | 3 2 3 Worker 1 | 1 . . Tunneler 3 | 3 . . Mechanic 1 | . . 1 Operator 1 | . . 1 Watcher 3 | . 2 1 Swarmer 10 | . 6 4 Grunt 6 | 1 3 2 Sentry 1 | . . 1 Best Kill Streak 5 | 4 3 5 Combat Bots Only 5 | 1 3 5 Max Kills in Single Turn 3 | 1 1 3 Gunslinging . | . . . Exploded 3 | . 1 3 Melee . | . . . Uniques/NPCs Destroyed . | . . . Combat | -11 -10 -9 -------- Run | Yrd Mat Mat Hostile Shots Fired 218 | 1 95 122 Missed 72 | 1 32 39 Hits 146 | . 63 83 Melee 2 | . . 2 Projectile 144 | . 63 81 Critical Strikes 1 | . . 1 Damage Taken 1724 | . 613 1111 Core 511 | . 111 400 Absorbed by Shields . | . . . Redirected to Shielding 60 | . . 60 Regen/Repaired (Parts) 12 | . . 12 Core Remaining (%) 77 | 100 55 . Volleys Fired 82 | 14 43 25 Largest 2 | 2 2 2 Hottest 120 | 40 120 63 Shots Fired 133 | 28 66 39 Gun 100 | 28 44 28 Cannon 17 | . 14 3 Launcher 15 | . 7 8 Special 1 | . 1 . Kinetic 117 | 28 58 31 Thermal 1 | . 1 . Explosive 15 | . 7 8 Electromagnetic . | . . . Robot Hit Streak 6 | 5 6 5 Robot Miss Streak 6 | 3 6 3 Penetration Max . | . . . Secondary Targets . | . . . Shots Hit Robots 74 | 18 29 27 Core Hits 44 | 9 18 17 Critical Kills . | . . . Critical Parts Destroyed . | . . . Critical Strikes . | . . . Melee Attacks . | . . . Impact . | . . . Slashing . | . . . Piercing . | . . . Sneak Attacks . | . . . Combat Hostiles . | . . . Follow-up Attacks . | . . . Damage Inflicted 1485 | 146 641 698 Guns 583 | 146 252 185 Cannons 176 | . 138 38 Explosions 696 | . 227 469 Melee . | . . . Ramming 6 | . . 6 Kinetic 759 | 146 390 223 Thermal 24 | . 24 . Explosive 696 | . 227 469 Electromagnetic . | . . . Impact . | . . . Slashing . | . . . Piercing . | . . . Highest Corruption 2 | . . 2 Average Corruption 1 | . . 1 Corruption Purged . | . . . Corruption Blocked . | . . . Effects 3 | . . 3 Message Errors 1 | . . 1 Heat Flow Errors 1 | . . 1 Energy Discharges 1 | . . 1 Overload Shots . | . . . Overflow Damage 47 | . 4 43 Projectiles 4 | . 4 . Explosions 43 | . . 43 Melee . | . . . Knockbacks 2 | . 2 . Impact . | . . . Kinetic 2 | . 2 . Secondary . | . . . Self-Inflicted Damage 136 | . 64 72 Shots 6 | . 4 2 Rammed 1 | . . 1 Targets Rammed 1 | . . 1 Kicked . | . . . Crushed . | . . . Highest Temperature 178 | . 33 178 Average Temperature 23 | . 14 34 Received Heat Transfer 480 | . 90 390 Siege Activations . | . . . Martial Activations . | . . . Shielding Activations . | . . . Robots Disrupted . | . . . Combat Hostiles . | . . . Robots Corrupted . | . . . Combat Hostiles . | . . . Parts Fried . | . . . Impact Corruptions . | . . . Robots Melted . | . . . Combat Hostiles . | . . . Parts Melted . | . . . Heat Transferred 50 | . 50 . Parts Sabotaged . | . . . Parts Stolen . | . . . Parts Stripped . | . . . Power Chain Reactions . | . . . Alert | -11 -10 -9 ------- Run | Yrd Mat Mat Maximum Alert Level 1 | . . 1 Low Security (%) 92 | 100 100 75 Level 1 7 | . . 24 Level 2 . | . . . Level 3 . | . . . Level 4 . | . . . Level 5 . | . . . High Security . | . . . Max Security . | . . . Peak Influence 374 | 20 177 374 Initial 67 | . . 67 Average 83 | 3 78 146 Influence Increases 929 | 40 372 517 Destroy 0b10 Robot/C 340 | 20 180 140 Destroy 0b10 Robot/NC 45 | 20 10 15 Destroy Leader 76 | . 44 32 Successful Hack 24 | . 17 7 Disable Machine 45 | . 30 15 Destroy Structure 99 | . 31 68 Partial Spotted 60 | . . 60 Lose Combat Pursuer 240 | . 60 180 Influence Decreases 635 | 40 211 384 Entered New Map 94 | . . 94 Time Decay 361 | 40 171 150 Lost Part 180 | . 40 140 Squads Dispatched 6 | . 3 3 Investigation 2 | . 1 1 Extermination . | . . . Reinforcement 4 | . 2 2 Assault . | . . . Garrison . | . . . Intercept . | . . . Searches Triggered . | . . . Construction Impeded 1 | . . 1 Haulers Reinforced . | . . . Active Scanning Responses . | . . . Cargo Convoy Interrupts . | . . . Stealth | -11 -10 -9 --------- Run | Yrd Mat Mat Distress Signals 5 | . 2 3 Communications Jammed . | . . . Distress Signals . | . . . Times Spotted 48 | 1 17 30 Peak Tracking Total 16 | 1 5 16 Tactical Retreats 6 | . 2 4 Traps | -11 -10 -9 ------- Run | Yrd Mat Mat Traps Triggered 1 | . . 1 Indirectly . | . . . Trap Hack Attempts . | . . . Triggered . | . . . Disarmed . | . . . Reprogrammed . | . . . Reused . | . . . Traps Extracted . | . . . Installed . | . . . Triggered . | . . . Machines | -11 -10 -9 ---------- Run | Yrd Mat Mat Machines Disabled 3 | . 2 1 Max in Single Turn 1 | . 1 1 Machines Repaired . | . . . Machines Dismantled . | . . . Machines Sabotaged . | . . . Overloaded Fab Kills . | . . . Hacking | -11 -10 -9 --------- Run | Yrd Mat Mat Machines Accessed 8 | . 3 5 Terminals 5 | . 2 3 Fabricators . | . . . Repair Stations 2 | . 1 1 Recycling Units 1 | . . 1 Scanalyzers . | . . . Garrison Access . | . . . Total Hacks 24 | . 8 16 Successful 16 | . 6 10 Failed 8 | . 2 6 Catastrophic 1 | . 1 . Database Lockouts . | . . . Manual 2 | . . 2 Terminals 18 | . 7 11 Fabricators . | . . . Repair Stations 3 | . 1 2 Recycling Units 3 | . . 3 Scanalyzers . | . . . Garrison Access . | . . . Terminal Hacks 13 | . 5 8 Record 3 | . 2 1 Prototype ID Bank 1 | . . 1 Emergency Access Points 1 | . . 1 Alert Level 2 | . . 2 Dispatch Records 3 | . 1 2 Investigation Status 1 | . 1 . Reinforcement Status 1 | . 1 . Hauler Manifests 1 | . . 1 Fabricator Hacks . | . . . Repair Station Hacks 3 | . 1 2 Scan Component 1 | . . 1 Repair 1 | . . 1 Refit 1 | . 1 . Recycling Unit Hacks . | . . . Scanalyzer . | . . . Garrison Access Hacks . | . . . Unauthorized Hacks . | . . . Terminals . | . . . Fabricators . | . . . Repair Stations . | . . . Recycling Units . | . . . Scanalyzers . | . . . Garrison Access . | . . . Data Cores Recovered 1 | . . 1 Used . | . . . Hacking Detections 7 | . 2 5 Full Trace Events 3 | . 1 2 Feedback Events 1 | . . 1 Corruption 1 | . . 1 Feedback Blocked . | . . . Robot Schematics Acquired . | . . . Robots Built . | . . . Authchips . | . . . Time . | . . . Total Robot Build Rating . | . . . Part Schematics Acquired . | . . . Parts Built . | . . . Authchips . | . . . Time . | . . . Total Part Build Rating . | . . . Parts Repaired 1 | . . 1 Time 26 | . . 26 Parts Recycled . | . . . Recycled Matter . | . . . Retrieved Matter . | . . . Retrieved Components . | . . . Parts Scanalyzed . | . . . Part Schematics Acquired . | . . . Parts Damaged . | . . . Bothacking | -11 -10 -9 ------------ Run | Yrd Mat Mat Used RIF Installer . | . . . Robots Hacked . | . . . Non-combat . | . . . Combat . | . . . Robot Hacks Applied . | . . . Relay Couplers Released . | . . . Fabnet Peak Effective % . | . . . Robots Rewired . | . . . Allies Hacked . | . . . Hacks Repelled . | . . . Allies | -11 -10 -9 -------- Run | Yrd Mat Mat Total Allies . | . . . Largest Group . | . . . Highest-Rated Group . | . . . Highest-Rated Ally . | . . . Total Orders . | . . . Ally Attacks . | . . . Total Damage . | . . . Kills . | . . . Allies Corrupted . | . . . Allies Melted . | . . . Intel | -11 -10 -9 ------- Run | Yrd Mat Mat Active Infowar (turns) 627 | 15 309 303 Optics 420 | . 117 303 Terrain 119 | 15 104 . Seismic 198 | 6 192 . Robot Analysis Total . | . . . Derelict Logs Recovered . | . . . Drone Launches . | . . . Drone Recoveries . | . . . Exploration | -11 -10 -9 ------------- Run | Yrd Mat Mat Turns Passed 943 | 209 431 303 Spaces Moved 1050 | 133 441 476 Core 23 | 18 . 5 Treads . | . . . Legs 220 | 115 105 . Wheels . | . . . Hover . | . . . Flight 807 | . 336 471 Fastest Speed 32 | 50 37 32 Average Speed 58 | 110 63 39 Slowest Speed 277 | 120 277 200 Overloaded Moves . | . . . Propulsion Burnouts . | . . . Robots Hopped 1 | . 1 . Potential Cave-ins . | . . . Cave-ins Triggered . | . . . Exploration Rate (%) 42 | 7 72 48 Regions Visited 2 Branch Regions . Pre-discovered Areas . | . . . Known Exits Taken . | . . . Unknown Exits Taken 2 | 1 1 . Scrap Searched . | . . . Spaces Dug . | . . . Terrain Destroyed 103 | . 33 70 Melee . | . . . Projectile . | . . . AOE 103 | . 33 70 Terrain Rammed . | . . . Walls Destroyed . | . . . Machines Disabled . | . . . Actions | -11 -10 -9 --------- Run | Yrd Mat Mat Total 1259 | 174 528 557 Wait 26 | . . 26 Move 1046 | 132 438 476 Hop 1 | . 1 . Pick Up 40 | 16 15 9 Fast Attach 2 | . 1 1 Attach 25 | 8 7 10 Detach 1 | . . 1 Swap 14 | . 9 5 Drop 21 | 4 14 3 Fire 82 | 14 43 25 Melee . | . . . Ram 1 | . . 1 Kick . | . . . Crush . | . . . Escape Stasis . | . . . Rewire . | . . . Trap . | . . . Miscellaneous . | . . . Route ------- -11/Scrapyard -10/Materials (discovered 3 exits: *Mat / [*Min] / [*Sub]) -9/Materials History --------- Turn | Location | Event 2 | -11/Scrapyard | Met Revision 17 133 | -11/Scrapyard | Discovered new exit (range 8) 210 | -11/Scrapyard | Entered Materials 301 | -10/Materials | Build established: Mutant 348 | -10/Materials | Discovered new exit (range 10) 388 | -10/Materials | Discovered new exit (range 8) 441 | -10/Materials | Lost 3 parts (1u2w) 627 | -10/Materials | Discovered new exit (range 17) 641 | -10/Materials | Entered another Materials area 641 | -9/Materials | Evolved 2 slots: Propulsion x1, Utility x1 772 | -9/Materials | Repaired Flight Unit 908 | -9/Materials | Lost 4 parts (1p2n1w) 913 | -9/Materials | Core integrity fell below 50% 935 | -9/Materials | Core integrity fell below 20% 944 | -9/Materials | Destroyed by G-34 Mercenary with Small Laser Last Messages --------------- R-06 Scavenger collects Lgt. Assault Rifle. Acquired 28 matter. Acquired Lgt. Assault Rifle. System corrupted: Energy discharge (-16). K-01 Serf collects debris. Heat Sink destroyed. R-06 Scavenger collects Lgt. Ion Engine. Lgt. Assault Rifle destroyed. K-01 Serf collects debris. G-47 Trooper destroyed. R-06 Scavenger collects Imp. Heat Sink. K-01 Serf collects debris. Lgt. Assault Rifle destroyed. K-01 Serf collects debris. Slammed into R-06 Scavenger. Ramming works as a last resort when unarmed or blocked, but can have serious negative consequences. Destabilizing: Core damaged (-12). [Achievement: First Step to Greatness] Map ----- +----------------------------------------------------+ | ?????????????????????????????????????????????????? | | ?????????????????????????????????????????????????? | | ?????????????????????????????????????????????????? | | ????????????????????????????????#+??? ???????? | | ???????????????????????????????? ? ???????? | | ???????????????????????????????? ???????? | | ?????????????????????????????????? ???????? | | ????????????????????????????????????# ???????? | | ??????????????????????????????????#??# ######### | | ??????????????????????????????????? ?# | | ???????????????????????????????????"?# | | ???????????????????????????????????? # | | ???????????????????????????????????? # #####+### | | ?????????????????????????????????????/ ##= #? | | ?????????????????????????????????????# ## #? | | ?????????????????????????????????????# ## ## | | ?????????????????????????????????????# ## """ # | | ?????????????????????????????????????+ ## """ # | | ?????????????????????????????????????# ## """ # | | ?????????????######################### ## # | | ?????????????# + + """ # | | ?????????????# ####################### """ # | | ?????????????# ## ##???????????????# """ # | | ????########## ## ###?????????????# # | | ????# # # #?????????????####### | | ????# # # @b=#???????????????????## | | ????# #+#+#####g r #????????????????????? | | ????# # b k# g #????????????????????? | | ????# + #g Y #????????????????????? | | ????# # + k #????????????????????? | | ????# # # "T" #????????????????????? | | ????# # #######????????????????????? | | ????# + #####???????????????+###### | | ????############## | | ?????????????????# #### | | ?????????????????# ?????????????? | | ?????????????????# ##### #####????????###### | | ?????????????????# #????? #????????????# | | ?????????????????# #?????? ???????????# | | ?????????????????#! !#???????""??????????# | | ?????????????????##!!!!##???????????????????# | | ??????????????????######????????????????????# | | ????????????????????????????????????????????# | | ????????????????????????????????????????????# | | ????????????????????????????????????????????# | | ????????????????????????????????????????????# | | ????????????????????????????????????????????# | | ????????????????????????????????????????????# | | ????????????????????????????????????????????# | | ????????????????????????????????????????????# | +----------------------------------------------------+ Best States ------------- Heat Dissipation 28 Energy Generation 10 Energy Capacity 125 Matter Stores 300 Matter Capacity 300 Sight Range 18 Terrain Scan Range 16 Terrain Scan Density 10 Armor Coverage 80 Power Shielding 33 Evasion (%) 63 Item Schematics ----------------- None Robot Schematics ------------------ None Fabricated ------------ Nothing Repaired ---------- Flight Unit | 40% | -9/Materials Alien Tech Used ----------------- None Achievements -------------- First Step to Greatness Let's See Who's Tougher One Hack Too Far Oops Part-time Mechanic Risk Taker Shopping List Storm Trooper Uninvited Guest Challenges ------------ None Game ------ Seed BlastIonicArray Manual? 0 Play Time 00:47:03 Cumulative 0.7 hours Start 2025.06.29 @ 04:46:52 End 2025.06.29 @ 05:38:20 Sessions 1 Manual Loads 0 Difficulty Rogue Special Mode None Game No. 1 Rogue 1 Adventurer 0 Explorer 0 Win Type - Total 0 Types 0/0/0/0/0/0/0/0/0/0 Lore% 0 Gallery% 1 Achievement% 3 Wizard Run 0 Options --------- Layout 1 ASCII 0 Keyboard 0 Movement Mouse Keybinds 0 Fullscreen 1 Font 24/Smallcaps Map View 50x35 Zoom Use 0% Tactical HUD 0 Map Filters NONE Filters NONE Steam 1 RUN: 1d3d34bd-61ef-4e95-acbb-fcf3a5b5ef68